[Event "RUS-ch Women Rapid 2019"]
[Site "Sochi"]
[Date "2019.10.15"]
[Round "4.8"]
[White "Shafigullina, Zarina"]
[Black "Lysenko, Maria"]
[Result "1-0"]
[ECO "A46"]
[WhiteElo "2295"]
[BlackElo "1986"]
[Annotator "NA"]
[PlyCount "99"]
[EventDate "2019.10.15"]
[EventType "swiss"]
[EventCountry "RUS"]
[SourceTitle "playchess.com"]
[Source "ChessBase"]
[SourceQuality "1"]
[TimeControl "900+10"]

1. d4 Nf6 2. Nf3 e6 3. g3 b6 4. Bg2 Bb7 5. O-O d5 6. c4 Be7 7. cxd5 exd5 8. Nc3 O-O 9. Bf4 Nh5 10. Bd2 Nf6 11. Rc1 Ne4 12. Bf4 Bd6 13. Bxd6 Nxd6 14. Ne5 c6 15. Re1 Nd7 16. e4 dxe4 17. Nxe4 Nxe4 18. Bxe4 Nxe5 19. dxe5 Qc7 20. Rc4 g6 21. Qd6 Rac8 22. Qxc7 Rxc7 23. Rd1 c5 24. Bxb7 Rxb7 25. Rd6 Re8 26. f4 Re6 27. Rd8+ Kg7 28. Kf2 f6 29. exf6+ Kxf6 30. Rc2 Rbe7 31. Rcd2 Re8 32. R8d5 R8e7 33. Kf3 Re3+ 34. Kg4 Re2 35. h3 h5+ 36. Kh4 Rxd2 37. Rxd2 {[%emt 0:18:47]} Kf5 {[%emt 0:19:58]} 38. Rd5+ {[%emt 0:00:10]} Kf6 {[%emt 0:00:10]} 39. g4 {[%emt 0:00:10]} hxg4 {[%emt 0:00:10]} 40. hxg4 {[%emt 0:00:10]} Re2 {[%emt 0:00:10]} 41. Rd6+ {[%emt 0:00:10]} Re6 {[%emt 0:00:10]} 42. Rxe6+ {[%emt 0:00:10]} Kxe6 {[%emt 0:00:10]} 43. Kg5 {[%emt 0:02:01]} Kf7 44. f5 gxf5 {[%emt 0:00:50]} 45. Kxf5 {[%emt 0:00:02]} b5 {[%emt 0:00:07]} 46. Ke5 {[%emt 0:00:05]} Kg6 {[%emt 0:00:19]} 47. Kd5 {[%emt 0:00:39]} c4 {[%emt 0:00:01]} 48. a3 {[%emt 0:00:01]} Kg5 {[%emt 0:00:38]} 49. Kc5 {[%emt 0:00:02]} a6 {[%emt 0:00:01]} 50. Kb6 {[%emt 0:00:01]} 1-0

[Event "RUS-ch Women Rapid 2019"]
[Site "Sochi"]
[Date "2019.10.15"]
[Round "4.11"]
[White "Maltsevskaya, Aleksandra"]
[Black "Gutkovich, Polina"]
[Result "0-1"]
[ECO "B00"]
[WhiteElo "2304"]
[BlackElo "2105"]
[Annotator "NA"]
[PlyCount "72"]
[EventDate "2019.10.15"]
[EventType "swiss"]
[EventCountry "RUS"]
[SourceTitle "playchess.com"]
[Source "ChessBase"]
[SourceQuality "1"]
[TimeControl "900+10"]

1. e4 {[%emt 0:00:00]} Nc6 {[%emt 0:00:00]} 2. Nf3 {[%emt 0:00:00]} d6 {[%emt 0:00:00]} 3. d4 {[%emt 0:00:00]} Nf6 {[%emt 0:00:00]} 4. Bd3 {[%emt 0:00:02]} g6 {[%emt 0:00:00]} 5. O-O {[%emt 0:00:03]} Bg7 {[%emt 0:00:00]} 6. c3 {[%emt 0:00:01]} O-O {[%emt 0:00:01]} 7. h3 {[%emt 0:00:01]} e5 {[%emt 0:00:11]} 8. Na3 {[%emt 0:00:33]} d5 {[%emt 0:01:40]} 9. exd5 {[%emt 0:02:13]} Nxd5 {[%emt 0:00:11]} 10. dxe5 {[%emt 0:00:42]} Nxe5 {[%emt 0:00:12]} 11. Nxe5 {[%emt 0:00:02]} Bxe5 {[%emt 0:00:02]} 12. Bh6 {[%emt 0:00:01]} Re8 {[%emt 0:00:22]} 13. Nc4 {[%emt 0:00:39]} Bf4 {[%emt 0:00:30]} 14. Bxf4 {[%emt 0:01:22]} Nxf4 {[%emt 0:00:02]} 15. Bc2 {[%emt 0:00:00]} Qg5 {[%emt 0:00:10]} 16. Qf3 {[%emt 0:00:32]} Bxh3 {[%emt 0:00:58]} 17. Ne3 {[%emt 0:00:48]} Bd7 {[%emt 0:01:00]} 18. Bb3 {[%emt 0:03:38]} Bc6 {[%emt 0:04:26]} 19. Qg4 {[%emt 0:00:02]} Qxg4 {[%emt 0:00:01]} 20. Nxg4 {[%emt 0:00:01]} Kg7 {[%emt 0:00:02]} 21. Ne3 {[%emt 0:00:13]} Re5 {[%emt 0:01:37]} 22. Rfe1 {[%emt 0:02:18]} Rae8 {[%emt 0:00:39]} 23. Kf1 {[%emt 0:02:36]} Rh5 {[%emt 0:00:33]} 24. Kg1 {[%emt 0:00:01]} Rg5 {[%emt 0:00:13]} 25. f3 {[%emt 0:00:12]} Bxf3 {[%emt 0:02:27]} 26. Nf5+ {[%emt 0:02:38]} gxf5 {[%emt 0:00:04]} 27. Rxe8 {[%emt 0:00:02]} Rxg2+ {[%emt 0:00:02]} 28. Kf1 {[%emt 0:00:00]} Nh3 {[%emt 0:00:01]} 29. Ke1 {[%emt 0:00:38]} Rg1+ {[%emt 0:00:03]} 30. Kd2 {[%emt 0:00:01]} Rxa1 {[%emt 0:00:01]} 31. Re7 {[%emt 0:00:11]} Ng5 {[%emt 0:00:08]} 32. Rxc7 {[%emt 0:00:01]} h5 {[%emt 0:00:50]} 33. Ke3 {[%emt 0:00:26]} h4 {[%emt 0:00:11]} 34. Kf4 {[%emt 0:00:01]} Rg1 {[%emt 0:00:02]} 35. Rd7 {[%emt 0:00:21]} h3 {[%emt 0:00:19]} 36. Rd2 {[%emt 0:00:02]} Rg2 {[%emt 0:00:05]} 0-1

[Event "RUS-ch Women Rapid 2019"]
[Site "Sochi"]
[Date "2019.10.15"]
[Round "4.12"]
[White "Mukhina, Jana"]
[Black "Gritsayeva, Oksana"]
[Result "1/2-1/2"]
[ECO "B31"]
[WhiteElo "2105"]
[BlackElo "2260"]
[Annotator "NA"]
[PlyCount "81"]
[EventDate "2019.10.15"]
[EventType "swiss"]
[EventCountry "RUS"]
[SourceTitle "playchess.com"]
[Source "ChessBase"]
[SourceQuality "1"]
[TimeControl "900+10"]

1. e4 c5 2. Nf3 Nc6 3. Bb5 g6 4. O-O Bg7 5. c3 Qb6 6. Bxc6 Qxc6 7. d4 d6 8. e5 Bg4 9. d5 Qd7 10. exd6 exd6 11. h3 Bxf3 12. Qxf3 Ne7 13. Bf4 O-O 14. Nd2 Rae8 15. Nc4 Nf5 16. g4 b5 17. Na5 Ne7 18. Rad1 Nc8 19. b4 f5 20. g5 Re4 21. Nc6 Rfe8 22. Qg3 Bxc3 23. Qxc3 Rxf4 24. bxc5 dxc5 25. Qxc5 Nd6 26. Qxa7 Qxa7 27. Nxa7 Ra4 28. Nc6 Rxa2 29. Rfe1 Re4 30. f3 Ree2 31. Rxe2 Rxe2 32. Ra1 f4 33. Ra8+ Kf7 34. Ra7+ Ke8 35. Ra8+ Kd7 36. Ra7+ Kc8 37. Ne7+ Kd8 38. Nc6+ Kc8 39. Ne7+ Kd8 40. Nc6+ Kc8 41. Ne7+ 1/2-1/2

[Event "RUS-ch Women Rapid 2019"]
[Site "Sochi"]
[Date "2019.10.15"]
[Round "5.1"]
[White "Sukhareva, Evgeniya"]
[Black "Ambartsumova, Karina"]
[Result "1-0"]
[ECO "E70"]
[WhiteElo "2122"]
[BlackElo "2336"]
[Annotator "NA"]
[PlyCount "70"]
[EventDate "2019.10.15"]
[EventType "swiss"]
[EventCountry "RUS"]
[SourceTitle "playchess.com"]
[Source "ChessBase"]
[SourceQuality "1"]
[TimeControl "900+10"]

1. d4 {[%emt 0:00:00]} Nf6 {[%emt 0:00:00]} 2. c4 {[%emt 0:00:00]} g6 {[%emt 0:00:14]} 3. Nc3 {[%emt 0:00:02]} Bg7 {[%emt 0:00:02]} 4. e4 {[%emt 0:00:04]} d6 {[%emt 0:00:02]} 5. Bg5 {[%emt 0:00:16]} O-O {[%emt 0:00:28]} 6. f3 {[%emt 0:00:05]} c5 {[%emt 0:00:51]} 7. d5 {[%emt 0:00:05]} a6 {[%emt 0:00:03]} 8. a4 {[%emt 0:00:07]} Qa5 {[%emt 0:01:54]} 9. Qd2 {[%emt 0:00:24]} b5 {[%emt 0:00:35]} 10. cxb5 {[%emt 0:00:14]} Nbd7 {[%emt 0:00:42]} 11. bxa6 {[%emt 0:01:37]} Bxa6 {[%emt 0:00:07]} 12. Bxa6 {[%emt 0:00:02]} Qxa6 {[%emt 0:00:29]} 13. Nge2 {[%emt 0:00:06]} Rfb8 {[%emt 0:00:47]} 14. O-O {[%emt 0:00:16]} Rb4 {[%emt 0:01:43]} 15. Rab1 {[%emt 0:04:29]} Rab8 {[%emt 0:04:21]} 16. Qc2 {[%emt 0:01:21]} Qc4 {[%emt 0:01:19]} 17. Rfd1 {[%emt 0:05:00]} h6 {[%emt 0:02:15]} 18. Be3 {[%emt 0:02:11]} Ne8 {[%emt 0:00:12]} 19. Qd2 {[%emt 0:00:50]} Qa6 {[%emt 0:00:55]} 20. Bxh6 {[%emt 0:00:38]} Bxh6 {[%emt 0:00:30]} 21. Qxh6 {[%emt 0:00:03]} Rxb2 {[%emt 0:00:02]} 22. Rxb2 {[%emt 0:00:19]} Rxb2 {[%emt 0:00:01]} 23. Rd2 {[%emt 0:00:10]} Rb4 {[%emt 0:00:13]} 24. h4 {[%emt 0:00:09]} Ng7 {[%emt 0:00:49]} 25. Ng3 {[%emt 0:00:21]} Qc4 {[%emt 0:00:10]} 26. Nce2 {[%emt 0:00:11]} Nf6 {[%emt 0:00:21]} 27. e5 {[%emt 0:00:12]} Nxd5 {[%emt 0:00:06]} 28. exd6 {[%emt 0:00:06]} exd6 {[%emt 0:00:07]} 29. h5 {[%emt 0:00:06]} Nf4 {[%emt 0:00:08]} 30. hxg6 {[%emt 0:00:12]} Nxg6 {[%emt 0:00:09]} 31. Rxd6 {[%emt 0:00:04]} Rb8 {[%emt 0:00:13]} 32. Qg5 {[%emt 0:00:11]} Qc2 {[%emt 0:00:20]} 33. Rd2 {[%emt 0:00:14]} Qxa4 {[%emt 0:00:05]} 34. Ne4 {[%emt 0:00:08]} Qa1+ {[%emt 0:00:05]} 35. Kf2 {[%emt 0:00:04]} Ne6 {[%emt 0:00:32]} 1-0

[Event "RUS-ch Women Rapid 2019"]
[Site "Sochi"]
[Date "2019.10.15"]
[Round "5.2"]
[White "Pogonina, Natalija"]
[Black "Karavaeva, Olga"]
[Result "1-0"]
[ECO "D30"]
[WhiteElo "2501"]
[BlackElo "2260"]
[Annotator "ChessBase"]
[PlyCount "53"]
[EventDate "2019.10.15"]
[EventType "swiss"]
[EventCountry "RUS"]
[SourceTitle "playchess.com"]
[Source "ChessBase"]
[SourceQuality "1"]
[TimeControl "900+10"]

1. d4 {[%emt 0:00:00]} d5 {[%emt 0:00:00]} 2. c4 {[%emt 0:00:00]} e6 {[%emt 0:00:00]} 3. g3 {[%emt 0:00:15]} c6 {[%emt 0:00:00]} 4. Qc2 {[%emt 0:00:04]} Nf6 {[%emt 0:00:04]} 5. Nf3 {[%emt 0:00:05]} Bd6 {[%emt 0:00:13]} 6. Bg2 {[%emt 0:00:04]} O-O {[%emt 0:00:18]} 7. O-O {[%emt 0:00:09]} Nbd7 {[%emt 0:00:08]} 8. Nbd2 {[%emt 0:00:33]} Qe7 {[%emt 0:00:37]} 9. Re1 {[%emt 0:00:26]} Rd8 {[%emt 0:02:48]} 10. e4 {[%emt 0:00:14]} dxe4 {[%emt 0:00:04]} 11. Nxe4 {[%emt 0:00:02]} Nxe4 {[%emt 0:01:02]} 12. Qxe4 {[%emt 0:00:31]} h6 {[%emt 0:02:31]} 13. a3 {[%emt 0:00:21]} a5 {[%emt 0:00:08]} 14. Bd2 {[%emt 0:00:14]} Qf8 {[%emt 0:00:45]} 15. Bc3 {[%emt 0:00:42]} Nf6 {[%emt 0:00:35]} 16. Qe2 {[%emt 0:00:24]} c5 {[%emt 0:00:57]} 17. Rad1 {[%emt 0:00:29]} Ra6 {[%emt 0:00:40]} 18. Ne5 {[%emt 0:02:54]} a4 {[%emt 0:00:50]} 19. Qc2 {[%emt 0:01:38]} Be7 {[%emt 0:01:14]} 20. d5 {[%emt 0:01:12]} exd5 {[%emt 0:00:20]} 21. cxd5 {[%emt 0:00:02]} Bd7 {[%emt 0:00:51]} 22. h3 {[%emt 0:00:22]} Be8 {[%emt 0:00:50]} 23. Qe2 {[%emt 0:00:33]} Rad6 {[%emt 0:01:19]} 24. Ng4 {[%emt 0:02:22]} Nxg4 {[%emt 0:01:00]} 25. Qxe7 {[%emt 0:00:07]} Nf6 {[%emt 0:00:23]} 26. Bxf6 {[%emt 0:01:02]} Rxf6 {[%emt 0:00:27]} 27. Qxd8 {[%emt 0:00:04]} 1-0

[Event "RUS-ch Women Rapid 2019"]
[Site "Sochi"]
[Date "2019.10.15"]
[Round "5.3"]
[White "Voit, Daria"]
[Black "Samigullina, Diana"]
[Result "1-0"]
[ECO "D11"]
[WhiteElo "2361"]
[BlackElo "2161"]
[Annotator "NA"]
[PlyCount "147"]
[EventDate "2019.10.15"]
[EventType "swiss"]
[EventCountry "RUS"]
[SourceTitle "playchess.com"]
[Source "ChessBase"]
[SourceQuality "1"]
[TimeControl "900+10"]

1. d4 d5 2. c4 c6 3. Nf3 Nf6 4. e3 a6 5. Bd3 b5 6. b3 Bg4 7. h3 Bh5 8. O-O e6 9. a4 b4 10. Nbd2 Bg6 11. Qc2 Bxd3 12. Qxd3 Be7 13. e4 O-O 14. e5 Nfd7 15. Re1 c5 16. cxd5 exd5 17. e6 fxe6 18. Rxe6 Bf6 19. Bb2 Qc7 20. Rae1 Nc6 21. Qf5 Nb6 22. dxc5 Bxb2 23. cxb6 Qd7 24. Qc2 Nd4 25. Nxd4 Bxd4 26. Nf3 Bc3 27. Re7 Qd6 28. R1e6 Qf4 29. b7 Rad8 30. Rxa6 d4 31. Ne5 d3 32. Nxd3 Qf5 33. Ra8 Rxa8 34. bxa8=Q Rxa8 35. Qe2 Rf8 36. Qe6+ Qxe6 37. Rxe6 Rd8 38. Re3 Bd2 39. Rf3 Rc8 40. Kf1 Rc3 41. Ke2 Rc2 42. Kd1 Ra2 43. Ne5 Bc3 44. Nc4 g6 45. h4 Kg7 46. g3 h6 47. g4 Bd4 48. Ke1 Ra1+ 49. Ke2 Ra2+ 50. Kf1 Ra1+ 51. Kg2 Ra2 52. Rf4 Bc3 53. Kf3 Be1 54. Ke3 Bc3 55. h5 gxh5 56. gxh5 Bf6 57. Rf5 Ra1 58. Kd3 Ra2 59. Na5 Bh4 60. f3 Bf6 61. Kc4 Be7 62. Nc6 Rc2+ 63. Kb5 Bd6 64. Nxb4 Rc3 65. Nd5 Rxb3+ 66. Kc6 Bf8 67. a5 Ra3 68. Nc7 Rc3+ 69. Kb7 Rb3+ 70. Nb5 Be7 71. a6 Rd3 72. a7 Rd7+ 73. Kc6 Rd8 74. Nc7 1-0

[Event "RUS-ch Women Rapid 2019"]
[Site "Sochi"]
[Date "2019.10.15"]
[Round "5.4"]
[White "Belkova, Diana"]
[Black "Shafigullina, Zarina"]
[Result "1/2-1/2"]
[ECO "B33"]
[WhiteElo "2030"]
[BlackElo "2295"]
[Annotator "NA"]
[PlyCount "101"]
[EventDate "2019.10.15"]
[EventType "swiss"]
[EventCountry "RUS"]
[SourceTitle "playchess.com"]
[Source "ChessBase"]
[SourceQuality "1"]
[TimeControl "900+10"]

1. e4 {[%emt 0:00:00]} c5 {[%emt 0:00:00]} 2. Nf3 {[%emt 0:00:00]} Nc6 {[%emt 0:00:00]} 3. d4 {[%emt 0:00:00]} cxd4 {[%emt 0:00:00]} 4. Nxd4 {[%emt 0:00:00]} Nf6 {[%emt 0:00:00]} 5. Nc3 {[%emt 0:00:00]} e5 {[%emt 0:00:00]} 6. Ndb5 {[%emt 0:00:00]} d6 {[%emt 0:00:00]} 7. Bg5 {[%emt 0:00:02]} a6 {[%emt 0:00:00]} 8. Na3 {[%emt 0:00:02]} b5 {[%emt 0:00:00]} 9. Bxf6 {[%emt 0:00:01]} gxf6 {[%emt 0:00:00]} 10. Nd5 {[%emt 0:00:01]} f5 {[%emt 0:00:06]} 11. Bd3 {[%emt 0:00:03]} f4 {[%emt 0:00:18]} 12. Qh5 {[%emt 0:00:11]} Bg7 {[%emt 0:00:37]} 13. O-O {[%emt 0:00:42]} Ne7 {[%emt 0:01:09]} 14. c4 {[%emt 0:00:07]} Nxd5 {[%emt 0:00:26]} 15. cxd5 {[%emt 0:01:17]} Bd7 {[%emt 0:00:23]} 16. Nc2 {[%emt 0:00:51]} O-O {[%emt 0:01:31]} 17. g3 {[%emt 0:00:55]} Qf6 {[%emt 0:00:30]} 18. f3 {[%emt 0:03:10]} Qg6 {[%emt 0:02:27]} 19. Qxg6 {[%emt 0:00:18]} fxg6 {[%emt 0:00:07]} 20. Rac1 {[%emt 0:01:11]} Bh6 {[%emt 0:02:08]} 21. g4 {[%emt 0:00:04]} Bg5 {[%emt 0:00:05]} 22. Nb4 {[%emt 0:00:01]} Bd8 {[%emt 0:00:08]} 23. Kf2 {[%emt 0:00:43]} Bb6+ {[%emt 0:00:11]} 24. Ke2 {[%emt 0:00:01]} Kf7 {[%emt 0:01:46]} 25. Rc2 {[%emt 0:02:58]} Kf6 {[%emt 0:00:15]} 26. h4 {[%emt 0:00:08]} Bc5 {[%emt 0:04:51]} 27. Nc6 {[%emt 0:01:04]} Be3 {[%emt 0:00:09]} 28. b3 {[%emt 0:00:37]} Rfc8 {[%emt 0:00:21]} 29. Nb4 {[%emt 0:00:39]} Bc5 {[%emt 0:00:08]} 30. Nc6 {[%emt 0:00:50]} Rc7 {[%emt 0:01:37]} 31. b4 {[%emt 0:01:39]} Be3 {[%emt 0:00:02]} 32. a4 {[%emt 0:00:08]} bxa4 {[%emt 0:00:23]} 33. Ra1 {[%emt 0:00:01]} Bxc6 {[%emt 0:00:28]} 34. dxc6 {[%emt 0:00:03]} Rac8 {[%emt 0:00:10]} 35. Rxa4 {[%emt 0:00:11]} Rxc6 {[%emt 0:00:02]} 36. Rxc6 {[%emt 0:00:15]} Rxc6 {[%emt 0:00:01]} 37. Rxa6 {[%emt 0:00:01]} Rxa6 {[%emt 0:00:37]} 38. Bxa6 {[%emt 0:00:02]} h5 {[%emt 0:00:10]} 39. Bc8 {[%emt 0:00:10]} Ke7 {[%emt 0:00:10]} 40. b5 {[%emt 0:00:26]} Bb6 {[%emt 0:00:02]} 41. gxh5 {[%emt 0:01:18]} gxh5 {[%emt 0:00:01]} 42. Bf5 {[%emt 0:00:01]} Kf6 {[%emt 0:00:01]} 43. Bd7 {[%emt 0:00:10]} Ke7 {[%emt 0:00:04]} 44. Bf5 {[%emt 0:00:15]} Kf6 {[%emt 0:00:01]} 45. Kd3 {[%emt 0:00:32]} d5 {[%emt 0:00:51]} 46. Bd7 {[%emt 0:00:24]} Ke7 {[%emt 0:00:02]} 47. Bf5 {[%emt 0:00:03]} Kf6 {[%emt 0:00:02]} 48. Bd7 {[%emt 0:00:01]} Ke7 {[%emt 0:00:00]} 49. Bf5 {[%emt 0:00:01]} Kf6 {[%emt 0:00:09]} 50. Bd7 {[%emt 0:00:02]} Ke7 {[%emt 0:00:11]} 51. Bf5 1/2-1/2

[Event "RUS-ch Women Rapid 2019"]
[Site "Sochi"]
[Date "2019.10.15"]
[Round "5.5"]
[White "Bivol, Alina"]
[Black "Bodnaruk, Anastasia"]
[Result "0-1"]
[ECO "A25"]
[WhiteElo "2283"]
[BlackElo "2449"]
[Annotator "NA"]
[PlyCount "78"]
[EventDate "2019.10.15"]
[EventType "swiss"]
[EventCountry "RUS"]
[SourceTitle "playchess.com"]
[Source "ChessBase"]
[SourceQuality "1"]
[TimeControl "900+10"]

1. c4 e5 2. g3 Nc6 3. Bg2 g6 4. Nc3 Bg7 5. Nf3 d6 6. O-O f5 7. d3 Nf6 8. Rb1 O-O 9. b4 h6 10. b5 Ne7 11. Qc2 g5 12. c5 f4 13. cxd6 cxd6 14. Qb3+ Kh8 15. Ba3 Nf5 16. Qb4 Be6 17. Rfd1 Qe8 18. Ne4 Nd5 19. Qd2 g4 20. Ne1 Rd8 21. Nc2 Qh5 22. Nb4 f3 23. Bf1 fxe2 24. Bxe2 Nd4 25. Nxd5 Bxd5 26. Bb2 Bxe4 27. Bxd4 Bf3 28. Be3 Rf5 29. Bxf3 gxf3 30. Qe1 d5 31. Bxa7 Qg4 32. Qf1 Rh5 33. Rdc1 Rh3 34. Rb4 d4 35. Bxd4 exd4 36. Rc5 Bf8 37. Rbc4 Bxc5 38. Rxc5 Re8 39. Qc1 Qe6 0-1

[Event "RUS-ch Women Rapid 2019"]
[Site "Sochi"]
[Date "2019.10.15"]
[Round "5.6"]
[White "Styazhkina, Anna"]
[Black "Kovanova, Baira"]
[Result "1-0"]
[ECO "C55"]
[WhiteElo "2280"]
[BlackElo "2288"]
[Annotator "NA"]
[PlyCount "73"]
[EventDate "2019.10.15"]
[EventType "swiss"]
[EventCountry "RUS"]
[SourceTitle "playchess.com"]
[Source "ChessBase"]
[SourceQuality "1"]
[TimeControl "900+10"]

1. e4 {[%emt 0:00:00]} e5 {[%emt 0:00:00]} 2. Nf3 {[%emt 0:00:00]} Nc6 {[%emt 0:00:15]} 3. Bc4 {[%emt 0:01:55]} Nf6 {[%emt 0:00:17]} 4. d3 {[%emt 0:00:05]} Be7 {[%emt 0:00:04]} 5. Nc3 {[%emt 0:00:45]} d6 {[%emt 0:00:14]} 6. a3 {[%emt 0:00:09]} Be6 {[%emt 0:00:50]} 7. Nd5 {[%emt 0:01:30]} Qd7 {[%emt 0:00:32]} 8. h3 {[%emt 0:00:23]} Nd4 {[%emt 0:01:32]} 9. Be3 {[%emt 0:00:36]} Nxf3+ {[%emt 0:01:43]} 10. Qxf3 {[%emt 0:00:04]} Nxd5 {[%emt 0:00:20]} 11. exd5 {[%emt 0:00:08]} Bf5 {[%emt 0:00:02]} 12. O-O-O {[%emt 0:00:52]} a6 {[%emt 0:00:03]} 13. d4 {[%emt 0:00:08]} e4 {[%emt 0:01:01]} 14. Qe2 {[%emt 0:01:11]} Bg6 {[%emt 0:00:14]} 15. Bf4 {[%emt 0:01:07]} Qf5 {[%emt 0:02:47]} 16. Qe3 {[%emt 0:00:32]} Qd7 {[%emt 0:01:27]} 17. Rhe1 {[%emt 0:00:22]} f5 {[%emt 0:00:42]} 18. Qb3 {[%emt 0:00:58]} b5 {[%emt 0:00:48]} 19. Be2 {[%emt 0:00:07]} O-O {[%emt 0:00:10]} 20. Kb1 {[%emt 0:02:07]} Bf7 {[%emt 0:00:07]} 21. f3 {[%emt 0:00:31]} Qc8 {[%emt 0:01:15]} 22. fxe4 {[%emt 0:00:23]} fxe4 {[%emt 0:00:01]} 23. Bg4 {[%emt 0:00:26]} Qb7 {[%emt 0:00:03]} 24. Rxe4 {[%emt 0:00:11]} Qxd5 {[%emt 0:02:57]} 25. Qxd5 {[%emt 0:00:35]} Bxd5 {[%emt 0:00:02]} 26. Rxe7 {[%emt 0:00:06]} Rxf4 {[%emt 0:00:02]} 27. Rxc7 {[%emt 0:00:15]} Raf8 {[%emt 0:00:39]} 28. Rd7 {[%emt 0:01:57]} R8f6 {[%emt 0:00:24]} 29. g3 {[%emt 0:00:34]} Rf1 {[%emt 0:00:45]} 30. Kc1 {[%emt 0:00:06]} R1f2 {[%emt 0:00:02]} 31. Re1 {[%emt 0:00:34]} h6 {[%emt 0:00:04]} 32. b3 {[%emt 0:00:51]} Bf7 {[%emt 0:00:27]} 33. Re3 {[%emt 0:00:29]} Rf1+ {[%emt 0:00:14]} 34. Kb2 {[%emt 0:00:03]} h5 {[%emt 0:00:06]} 35. Be2 {[%emt 0:00:10]} Rg1 {[%emt 0:00:15]} 36. Bd3 {[%emt 0:00:17]} Rg2 {[%emt 0:00:06]} 37. Rd8+ {[%emt 0:00:05]} 1-0

[Event "RUS-ch Women Rapid 2019"]
[Site "Sochi"]
[Date "2019.10.15"]
[Round "5.7"]
[White "Ovod, Evgenija"]
[Black "Dumcheva, Julia"]
[Result "1-0"]
[ECO "C55"]
[WhiteElo "2347"]
[BlackElo "2168"]
[Annotator "NA"]
[PlyCount "77"]
[EventDate "2019.10.15"]
[EventType "swiss"]
[EventCountry "RUS"]
[SourceTitle "playchess.com"]
[Source "ChessBase"]
[SourceQuality "1"]
[TimeControl "900+10"]

1. e4 {[%emt 0:00:00]} e5 {[%emt 0:00:06]} 2. Nf3 {[%emt 0:00:00]} Nc6 {[%emt 0:00:03]} 3. Bc4 {[%emt 0:00:00]} Nf6 {[%emt 0:01:05]} 4. d3 {[%emt 0:00:00]} Be7 {[%emt 0:00:13]} 5. O-O {[%emt 0:00:04]} O-O {[%emt 0:00:05]} 6. Nbd2 {[%emt 0:00:11]} d6 {[%emt 0:00:12]} 7. a4 {[%emt 0:00:14]} Be6 {[%emt 0:00:55]} 8. a5 {[%emt 0:00:19]} Qc8 {[%emt 0:00:33]} 9. a6 {[%emt 0:01:19]} b6 {[%emt 0:00:23]} 10. c3 {[%emt 0:00:06]} Bxc4 {[%emt 0:00:22]} 11. Nxc4 {[%emt 0:00:29]} Nb8 {[%emt 0:00:08]} 12. Qa4 {[%emt 0:00:24]} c6 {[%emt 0:00:18]} 13. Ne3 {[%emt 0:00:04]} Rd8 {[%emt 0:01:08]} 14. b4 {[%emt 0:00:46]} Nbd7 {[%emt 0:01:27]} 15. Nf5 {[%emt 0:01:12]} Bf8 {[%emt 0:00:04]} 16. Qb3 {[%emt 0:00:03]} c5 {[%emt 0:00:34]} 17. Re1 {[%emt 0:01:38]} Qc7 {[%emt 0:02:10]} 18. Ng5 {[%emt 0:01:31]} Nb8 {[%emt 0:00:08]} 19. f4 {[%emt 0:01:15]} g6 {[%emt 0:00:38]} 20. Ne3 {[%emt 0:01:17]} h6 {[%emt 0:01:02]} 21. Nd5 {[%emt 0:02:39]} Nxd5 {[%emt 0:01:39]} 22. Qxd5 {[%emt 0:00:02]} Nc6 {[%emt 0:01:04]} 23. Nxf7 {[%emt 0:01:11]} Qxf7 {[%emt 0:00:27]} 24. Qxc6 {[%emt 0:00:02]} exf4 {[%emt 0:00:36]} 25. bxc5 {[%emt 0:00:37]} dxc5 {[%emt 0:00:30]} 26. e5 {[%emt 0:00:21]} Rac8 {[%emt 0:00:34]} 27. Qe4 {[%emt 0:00:18]} Qf5 {[%emt 0:00:45]} 28. Qc4+ {[%emt 0:01:22]} Kh7 {[%emt 0:00:10]} 29. Bxf4 {[%emt 0:00:53]} b5 {[%emt 0:00:27]} 30. Qe4 {[%emt 0:00:10]} Rxd3 {[%emt 0:00:24]} 31. Qb7+ {[%emt 0:00:15]} Bg7 {[%emt 0:00:27]} 32. e6 {[%emt 0:00:14]} Qxf4 {[%emt 0:01:16]} 33. Qxc8 {[%emt 0:00:20]} Rd2 {[%emt 0:00:09]} 34. Qb7 {[%emt 0:00:22]} Qf2+ {[%emt 0:00:15]} 35. Kh1 {[%emt 0:00:02]} Re2 {[%emt 0:00:10]} 36. Rxe2 {[%emt 0:00:27]} Qxe2 {[%emt 0:00:01]} 37. Qf7 {[%emt 0:00:03]} b4 {[%emt 0:00:14]} 38. e7 {[%emt 0:00:27]} Qb2 {[%emt 0:00:10]} 39. Rf1 {[%emt 0:00:14]} 1-0

[Event "RUS-ch Women Rapid 2019"]
[Site "Sochi"]
[Date "2019.10.15"]
[Round "5.8"]
[White "Gutkovich, Polina"]
[Black "Chernyak, Viktoria"]
[Result "0-1"]
[ECO "D35"]
[WhiteElo "2105"]
[BlackElo "2284"]
[Annotator "NA"]
[PlyCount "59"]
[EventDate "2019.10.15"]
[EventType "swiss"]
[EventCountry "RUS"]
[SourceTitle "playchess.com"]
[Source "ChessBase"]
[SourceQuality "1"]
[TimeControl "900+10"]

1. d4 {[%emt 0:00:00]} d5 {[%emt 0:00:00]} 2. c4 {[%emt 0:00:00]} e6 {[%emt 0:00:00]} 3. Nc3 {[%emt 0:00:00]} Nf6 {[%emt 0:00:00]} 4. cxd5 {[%emt 0:00:00]} exd5 {[%emt 0:00:00]} 5. Bg5 {[%emt 0:00:00]} Bb4 {[%emt 0:00:00]} 6. e3 {[%emt 0:00:06]} h6 {[%emt 0:00:56]} 7. Bh4 {[%emt 0:00:08]} g5 {[%emt 0:00:11]} 8. Bg3 {[%emt 0:00:02]} Ne4 {[%emt 0:00:39]} 9. Qb3 {[%emt 0:00:31]} Bxc3+ {[%emt 0:01:08]} 10. bxc3 {[%emt 0:00:04]} h5 {[%emt 0:01:31]} 11. f3 {[%emt 0:00:55]} Nxg3 {[%emt 0:00:07]} 12. hxg3 {[%emt 0:00:01]} c6 {[%emt 0:01:05]} 13. Bd3 {[%emt 0:00:55]} Nd7 {[%emt 0:00:18]} 14. Ne2 {[%emt 0:01:07]} Nf6 {[%emt 0:00:06]} 15. e4 {[%emt 0:00:50]} dxe4 {[%emt 0:01:59]} 16. fxe4 {[%emt 0:00:03]} Qe7 {[%emt 0:00:04]} 17. Qc2 {[%emt 0:01:07]} Ng4 {[%emt 0:00:08]} 18. Qd2 {[%emt 0:00:52]} Be6 {[%emt 0:01:07]} 19. d5 {[%emt 0:02:39]} cxd5 {[%emt 0:00:32]} 20. Bb5+ {[%emt 0:00:03]} Kf8 {[%emt 0:01:26]} 21. exd5 {[%emt 0:01:53]} Rd8 {[%emt 0:00:03]} 22. c4 {[%emt 0:01:35]} Bf5 {[%emt 0:01:04]} 23. O-O {[%emt 0:00:46]} Bg6 {[%emt 0:00:10]} 24. Nd4 {[%emt 0:00:10]} Kg8 {[%emt 0:00:10]} 25. Rae1 {[%emt 0:00:10]} Qc5 {[%emt 0:00:10]} 26. Be8 {[%emt 0:00:10]} Rd6 {[%emt 0:00:10]} 27. Re7 {[%emt 0:00:10]} Rh7 {[%emt 0:00:10]} 28. Rxb7 {[%emt 0:00:10]} Qxc4 {[%emt 0:00:10]} 29. Nb3 {[%emt 0:00:10]} Rxd5 {[%emt 0:00:10]} 30. Qb2 {[%emt 0:00:10]} 0-1